bitfinex-derivatives/quotes_BNBF0:USTF0_20250126
["timestamp","ask_amount","ask_price","bid_price","bid_amount"]
[1737933702112,0.88823519,667.03,665.68,0.27561498]
[1737933702413,0.88823519,667.02,665.69,0.27561498]
[1737933702713,0.88823519,667.02,665.7,0.27561498]
[1737933702914,0.88823519,667.02,665.71,0.27561498]
[1737933703113,0.88823519,667.02,665.72,0.27561498]
[1737933703314,1.07570839,667.91,665.73,0.27561498]
[1737933703315,0.88823519,667.01,665.73,0.27561498]
[1737933703615,0.88823519,667.01,665.74,0.27561498]
[1737933703916,0.88823519,667.0,665.75,0.27561498]
[1737933704115,0.88823519,667.0,665.76,0.27561498]
[1737933704314,0.88823519,667.0,665.77,0.27561498]
[1737933704511,0.88823519,666.99,665.78,0.27561498]
[1737933704714,0.88823519,666.99,665.79,0.27561498]
[1737933704913,0.88823519,666.98,665.8,0.27561498]
[1737933705112,0.88823519,666.98,665.81,0.27561498]
[1737933705311,0.88823519,666.97,665.82,0.27561498]
[1737933705518,0.88823519,666.97,665.83,0.27561498]
[1737933705816,0.88823519,666.96,665.84,0.27561498]
[1737933706013,0.88823519,666.96,665.85,0.27561498]
[1737933706212,0.88823519,666.96,665.86,0.27561498]
[1737933706415,0.88823519,666.95,665.87,0.27561498]
[1737933706615,0.88823519,666.95,665.88,0.27561498]
[1737933706816,0.88823519,666.95,665.89,0.27561498]
[1737933707018,0.88823519,666.94,665.9,0.27561498]
[1737933707221,0.88823519,666.94,665.91,0.27561498]
[1737933707419,2.68153378,668.26,665.92,0.27561498]
[1737933707420,0.88823519,666.93,665.92,0.27561498]
[1737933707619,0.88823519,666.93,665.93,0.27561498]
[1737933707820,0.88823519,666.93,665.94,0.27561498]
[1737933708016,0.88823519,666.92,665.95,0.27561498]
[1737933708222,0.88823519,666.92,665.96,0.27561498]
[1737933708423,0.88823519,666.92,665.97,0.27561498]
[1737933708623,0.88823519,666.92,665.98,0.27561498]
[1737933708823,0.88823519,666.91,665.99,0.27561498]
[1737933709124,0.88823519,666.91,666.0,0.27561498]
[1737933709318,0.88823519,666.91,666.01,0.27561498]
[1737933709522,0.88823519,666.9,666.02,0.27561498]
[1737933709820,0.88823519,666.9,666.03,0.27561498]
[1737933710125,0.88823519,666.89,666.04,0.27561498]
[1737933710523,0.88823519,666.89,666.05,0.27561498]
[1737933710725,0.88823519,666.89,666.06,0.27561498]
[1737933710921,0.88823519,666.89,666.07,0.27561498]
[1737933711127,0.88823519,666.88,666.08,0.27561498]
[1737933711325,0.88823519,666.87,666.09,0.27561498]
[1737933711526,0.88823519,666.87,666.1,0.27561498]
[1737933711726,1.07570839,668.16,666.11,0.27561498]
[1737933711727,0.88823519,666.86,666.11,0.27561498]
[1737933712030,0.88823519,666.86,666.12,0.27561498]
[1737933712328,0.88823519,666.85,666.13,0.27561498]
[1737933712529,0.88823519,666.85,666.14,0.27561498]
[1737933712732,4.17571551,668.13,666.15,0.27561498]
[1737933712927,4.17571551,668.13,666.16,0.27561498]
[1737933713124,4.17571551,668.13,666.17,0.27561498]
[1737933713328,1.07570839,667.97,666.18,0.27561498]
[1737933713531,0.88823519,667.96,666.19,0.27561498]
[1737933713729,0.88823519,667.96,666.2,0.27561498]
[1737933714024,0.88823519,667.95,666.21,0.27561498]
[1737933714229,0.88823519,667.95,666.22,0.27561498]
[1737933714425,0.88823519,667.95,666.1,0.27561498]
[1737933714623,0.88823519,667.94,666.11,0.27561498]
[1737933714928,0.88823519,667.93,666.12,0.27561498]
[1737933715123,0.88823519,667.93,666.13,0.27561498]
[1737933715324,0.88823519,667.93,666.11,0.27561498]
[1737933715531,1.07570839,667.97,666.12,0.27561498]
[1737933715532,0.88823519,667.92,666.12,0.27561498]
[1737933715725,0.88823519,667.92,666.11,0.27561498]
[1737933715929,0.88823519,667.92,666.1,0.691]
[1737933715930,0.88823519,667.91,666.13,0.27561498]
[1737933716131,1.96394358,667.91,666.14,0.27561498]
[1737933716330,0.88823519,667.9,666.11,0.27561498]
[1737933716530,0.88823519,667.9,666.12,0.27561498]
[1737933716730,0.88823519,667.9,666.1,0.691]
[1737933716731,0.88823519,667.89,666.13,0.27561498]
[1737933716932,0.88823519,667.89,666.14,0.27561498]
[1737933717126,0.88823519,667.88,666.11,0.27561498]
[1737933717329,0.88823519,667.88,666.12,0.27561498]
[1737933717532,0.88823519,667.87,666.11,0.27561498]
[1737933717835,0.88823519,667.86,666.12,0.27568023]
[1737933718033,0.88823519,667.85,666.13,0.27568023]
[1737933718233,0.88823519,667.85,666.14,0.27568023]
[1737933718432,0.88823519,667.84,666.15,0.27568023]
[1737933718633,0.88823519,667.84,666.11,0.27568023]
[1737933718927,0.88823519,667.83,666.12,0.27568023]
[1737933719232,1.07570839,667.8,666.13,0.27568023]
[1737933719432,1.07570839,667.8,666.11,0.27568023]
[1737933719626,1.07570839,667.8,666.12,0.27568023]
[1737933719827,0.88823519,667.79,666.11,0.27568023]
[1737933720024,0.88823519,667.79,666.12,0.27568023]
[1737933720424,0.88823519,667.78,666.11,0.27567961]
[1737933720629,0.88823519,667.78,666.12,0.27567961]
[1737933720826,0.88823519,667.77,666.11,0.27567961]
[1737933721130,0.88823519,667.77,666.12,0.27567961]
[1737933721327,0.88823519,667.76,666.1,0.691]
[1737933721531,3.28206288,667.76,666.1,0.691]
[1737933721727,0.88823519,667.76,666.1,0.691]
[1737933721926,0.88823519,667.75,666.1,0.691]
[1737933722130,3.28206288,667.75,666.1,0.691]
[1737933722334,5.687519,667.74,666.1,0.691]
[1737933722534,5.687519,667.73,666.1,0.691]
[1737933722734,5.687519,667.72,666.1,0.691]
[1737933722935,2.39382769,667.71,666.1,0.691]
[1737933723135,3.56782728,667.74,666.1,0.691]
[1737933723335,0.88823519,667.7,666.1,0.691]
[1737933723934,0.88823519,667.69,666.1,0.691]
[1737933724437,0.88823519,667.68,666.1,0.691]
[1737933724936,1.07570839,667.9,666.1,0.691]
[1737933724937,0.88823519,667.67,666.1,0.691]
[1737933725340,1.07570839,667.14,666.1,0.691]
[1737933725533,0.88823519,667.13,666.1,0.691]
[1737933726034,0.88823519,667.12,666.1,0.691]
[1737933726335,0.88823519,667.11,666.1,0.691]
[1737933726635,0.88823519,667.1,666.1,0.691]
[1737933727031,1.07570839,667.14,666.1,0.691]
[1737933727032,0.88823519,667.09,666.1,0.691]
[1737933727834,0.88823519,667.08,666.1,1.407]
[1737933728335,2.45529099,667.07,666.1,1.407]
[1737933728538,0.88823519,667.06,666.1,1.407]
[1737933729134,0.88823519,667.05,666.1,1.407]
[1737933729637,0.88823519,667.04,666.1,1.407]
[1737933730234,0.88823519,667.03,666.1,1.407]
[1737933730434,0.88823519,667.02,666.1,1.407]
[1737933730836,0.88823519,667.01,666.1,1.407]
[1737933731135,0.88823519,667.0,666.1,2.265]
[1737933732230,0.88823519,666.99,666.1,2.265]
[1737933732835,0.88823519,666.98,666.1,2.265]
[1737933733431,0.88823519,666.97,666.1,2.265]
[1737933734034,0.88823519,666.96,666.1,2.265]
[1737933734236,0.88823519,666.95,666.1,0.855]
[1737933734734,1.5670558,667.07,666.1,0.855]
[1737933734735,0.88823519,666.94,666.1,0.855]
[1737933735333,0.88823519,666.93,666.1,2.415]
[1737933735839,0.88823519,666.92,666.1,2.415]
[1737933736438,1.5670558,667.07,666.1,2.415]
[1737933736439,0.88823519,666.91,666.1,2.415]
[1737933736737,0.88823519,666.9,666.1,2.415]
[1737933736937,0.88823519,666.89,666.1,2.415]
[1737933737740,1.5670558,667.07,666.1,2.415]
[1737933737741,0.88823519,666.88,666.1,2.415]
[1737933738044,0.88823519,666.87,666.1,2.415]
[1737933738938,0.88823519,666.86,666.1,2.415]
[1737933739343,1.18815271,666.85,664.22,1.11847444]
[1737933739543,1.18815271,666.85,664.35,0.30104613]
[1737933739742,0.88823519,666.84,664.36,0.27596889]
[1737933739945,0.88823519,666.83,664.37,0.27596889]
[1737933740142,0.88823519,666.83,664.38,0.27596889]
[1737933740445,0.88823519,666.82,664.39,0.27596889]
[1737933740643,0.88823519,666.82,664.4,0.27596889]
[1737933740843,0.88823519,666.81,664.41,0.27596889]
[1737933741038,0.29991752,666.85,664.41,0.27596889]
[1737933741039,0.88823519,666.8,664.41,0.27596889]
[1737933741238,0.88823519,666.8,664.42,0.27596889]
[1737933741437,0.88823519,666.8,664.43,0.27596889]
[1737933741640,0.88823519,666.79,664.44,0.27596889]
[1737933741843,0.88823519,666.79,664.45,0.27596889]
[1737933742045,0.88823519,666.78,664.46,0.27596889]
[1737933742343,0.88823519,666.78,664.47,0.27596889]
[1737933742544,0.88823519,666.78,664.48,1.00656837]
[1737933742745,0.88823519,666.77,664.49,1.00656837]
[1737933742939,0.88823519,666.77,664.5,1.00664906]
[1737933743145,0.88823519,666.77,664.51,1.00664906]
[1737933743343,0.88823519,666.76,664.52,0.27593249]
[1737933743537,0.88823519,666.76,664.53,0.27593249]
[1737933743741,0.88823519,666.75,664.54,0.27593249]
[1737933743941,0.88823519,666.75,664.55,0.27593249]
[1737933744143,0.88823519,666.75,664.56,0.27593249]
[1737933744346,0.88823519,666.75,664.57,0.27593249]
[1737933744545,0.88823519,666.75,664.58,0.27593249]
[1737933744746,0.88823519,666.75,664.59,0.27593249]
[1737933745045,0.88823519,666.74,664.6,0.27592043]
[1737933745243,0.88823519,666.73,664.61,0.27592043]
[1737933745443,0.88823519,666.73,664.62,0.27592043]
[1737933745644,0.88823519,666.72,664.63,0.27592043]
[1737933745842,0.88823519,666.72,664.64,0.27592043]
[1737933746143,0.88823519,666.71,664.65,0.27592043]
[1737933746343,0.88823519,666.71,664.66,0.27592043]
[1737933746540,0.88823519,666.7,664.38,2.722]
[1737933746744,0.88823519,666.7,664.39,0.27588969]
[1737933746943,0.88823519,666.7,664.4,0.27588969]
[1737933747143,0.88823519,666.69,664.41,0.27588969]
[1737933747345,0.88823519,666.69,664.42,0.27588969]
[1737933747644,0.88823519,666.69,664.43,0.27588969]
[1737933747942,0.88823519,666.68,664.44,0.27588969]
[1737933748246,0.88823519,666.68,664.45,1.00651576]
[1737933748439,0.88823519,666.67,664.45,0.27588969]
[1737933748744,0.88823519,666.67,664.46,0.27588969]
[1737933748947,0.88823519,666.66,664.47,0.27588969]
[1737933749244,0.88823519,666.65,664.48,0.27588969]
[1737933749441,0.88823519,666.64,664.49,0.27588969]
[1737933749643,0.88823519,666.64,664.5,0.27588969]
[1737933749841,0.88823519,666.64,664.51,0.27588969]
[1737933750044,0.88823519,666.63,664.52,0.27588969]
[1737933750245,0.88823519,666.63,664.53,0.27588969]
[1737933750444,2.45712194,666.62,664.53,0.27588969]
[1737933751040,0.88823519,666.61,664.53,0.27588969]
[1737933751245,0.88823519,666.6,664.53,0.27588969]
[1737933751445,0.88823519,666.6,664.54,1.00651576]
[1737933751645,0.88823519,666.6,664.55,1.00651576]
[1737933751847,0.88823519,666.59,664.56,1.00651576]
[1737933752047,0.88823519,666.59,664.57,1.00651576]
[1737933752249,0.88823519,666.58,664.58,0.27588969]
[1737933752448,0.88823519,666.58,664.59,0.27588969]
[1737933752649,0.88823519,666.58,664.6,0.27588969]
[1737933752848,0.88823519,666.57,664.61,0.27604856]
[1737933753149,0.3000525,666.55,664.62,0.27604856]
[1737933753449,0.3000525,666.55,664.63,0.27604856]
[1737933753650,0.88823519,666.54,664.64,0.27604856]
[1737933753853,0.88823519,666.54,664.65,0.27604856]
[1737933754146,0.88823519,666.53,664.66,0.27604856]
[1737933754354,0.88823519,666.53,664.67,0.27604856]
[1737933754542,0.88823519,666.52,664.68,0.27604856]
[1737933754850,0.88823519,666.52,664.69,0.27604856]
[1737933755150,0.88823519,666.51,664.7,0.27604856]
[1737933755352,0.88823519,666.51,664.71,0.27604856]
[1737933755650,0.88823519,666.51,664.72,0.27604856]
[1737933755850,0.88823519,666.5,664.72,0.27604856]
[1737933756251,0.88823519,666.49,664.71,0.881]
[1737933756452,0.88823519,666.49,664.72,0.27611919]
[1737933756648,1.07570839,666.13,664.73,0.27611919]
[1737933756855,1.07570839,666.13,664.74,0.27611919]
[1737933757151,1.07570839,666.13,664.75,0.27611919]
[1737933757353,0.88823519,666.12,664.76,0.27611919]
[1737933757554,0.88823519,666.12,664.77,0.27611919]
[1737933757748,0.88823519,666.11,664.78,0.27611919]
[1737933757949,0.88823519,666.11,664.79,0.27611919]
[1737933758152,0.88823519,666.11,664.8,0.27611919]
[1737933758350,0.88823519,666.1,664.81,0.2760629]
[1737933758552,0.88823519,666.1,664.82,0.2760629]
[1737933758753,0.88823519,666.09,664.83,0.2760629]
[1737933758954,0.88823519,666.08,664.84,0.2760629]
[1737933759154,0.88823519,666.08,664.85,0.2760629]
[1737933759354,0.88823519,666.08,664.86,0.2760629]
[1737933759659,0.88823519,666.07,664.87,0.2760629]
[1737933759955,0.88823519,666.07,664.88,0.2760629]
[1737933760157,0.88823519,666.07,664.89,0.2760629]
[1737933760351,0.88823519,666.07,664.9,0.2760629]
[1737933760554,1.07570839,666.58,664.71,0.881]
[1737933760555,0.88823519,666.06,664.91,0.2760629]
[1737933760756,0.88823519,666.06,664.92,0.2760629]
[1737933761150,1.07570839,666.58,664.71,0.881]
[1737933761151,0.88823519,666.05,664.93,0.2760629]
[1737933761457,0.88823519,666.04,664.94,0.2760629]
[1737933761756,0.30029128,666.02,664.95,0.2760629]
[1737933761949,0.30029128,666.02,664.71,0.881]
[1737933762153,0.88823519,666.01,664.72,0.27609701]
[1737933762350,0.88823519,666.01,664.73,0.27609701]
[1737933762553,0.88823519,666.01,664.74,0.27609701]
[1737933762750,0.88823519,666.0,664.75,0.27609701]
[1737933762956,0.88823519,666.0,664.76,0.27609701]
[1737933763156,0.88823519,666.0,664.73,0.82]
[1737933763157,0.88823519,666.0,664.77,0.27609701]
[1737933763358,0.88823519,666.01,664.78,0.27609701]
[1737933763558,0.88823519,666.01,664.79,0.27609701]
[1737933763757,0.88823519,666.01,664.8,0.27609701]
[1737933764057,0.88823519,666.01,664.81,0.27609701]
[1737933764257,0.88823519,666.01,664.82,0.27609701]
[1737933764451,0.88823519,666.01,664.83,0.27609701]
[1737933764650,0.88823519,666.01,664.84,0.27609701]
[1737933764854,0.88823519,666.0,664.85,0.27609701]
[1737933765052,0.88823519,666.0,664.86,0.27609701]
[1737933765253,0.88823519,666.0,664.87,0.27609701]
[1737933765560,0.88823519,665.99,664.88,0.27609701]
[1737933765758,0.88823519,665.99,664.89,0.27609701]
[1737933765951,0.88823519,665.99,664.9,0.27609701]
[1737933766152,0.88823519,665.99,664.91,0.27609701]
[1737933766355,0.88823519,665.98,664.92,0.27609701]
[1737933766559,0.88823519,665.98,664.93,0.27609701]
[1737933766755,0.88823519,665.97,664.94,0.27609701]
[1737933766957,0.30031833,665.96,664.95,0.27609701]
[1737933767158,0.30031833,665.96,664.96,0.27609701]
[1737933767366,0.88823519,665.95,664.96,0.27609701]
[1737933767561,0.88823519,665.95,664.97,0.27609701]
[1737933767755,0.88823519,665.94,664.8,0.27609701]
[1737933767958,0.88823519,665.94,664.81,0.27609701]
[1737933768158,0.88823519,665.94,664.82,0.27609701]
[1737933768359,0.88823519,665.93,664.83,0.27609701]
[1737933768561,0.88823519,665.93,664.84,0.27609701]
[1737933768758,0.88823519,665.93,664.8,0.27609701]
[1737933768962,0.88823519,665.92,664.81,0.27609701]
[1737933769161,0.88823519,665.92,664.82,0.27617012]
[1737933769364,0.88823519,665.91,664.83,0.27617012]
[1737933769559,0.88823519,665.9,664.84,0.27617012]
[1737933769761,0.88823519,665.9,664.85,0.27617012]
[1737933770061,1.56970057,665.89,664.79,0.68]
[1737933770258,0.88823519,665.88,664.8,0.27622654]
[1737933771065,0.88823519,665.87,664.8,0.27622654]
[1737933771861,0.88823519,665.86,664.8,0.27622654]
[1737933772266,0.88823519,665.85,664.8,0.27622654]
[1737933772764,0.88823519,665.84,664.8,0.27622654]
[1737933772968,0.88823519,665.84,664.81,0.27622654]
[1737933773167,0.88823519,665.84,664.82,0.27622654]
[1737933773367,0.88823519,665.84,664.79,0.68]
[1737933773368,0.88823519,665.83,664.83,0.27622654]
[1737933773569,0.88823519,665.83,664.8,0.27622654]
[1737933773773,0.88823519,665.82,664.81,0.27622654]
[1737933774068,0.3003905,665.8,664.82,0.27622654]
[1737933774269,0.3003905,665.8,664.8,0.27622654]
[1737933774470,0.88823519,665.79,664.79,0.68]
[1737933774671,0.88823519,665.79,664.8,0.27619771]
[1737933775064,0.88823519,665.78,664.8,0.27619771]
[1737933775467,0.88823519,665.77,664.8,0.27619771]
[1737933775868,0.88823519,665.76,664.8,0.27619771]
[1737933776568,0.30041758,665.74,664.8,0.27619771]
[1737933776871,0.30041758,665.74,664.81,0.27619771]
[1737933777071,0.30041758,665.74,664.82,0.27619771]
[1737933777268,0.88823519,665.73,664.8,0.27619771]
[1737933777471,0.88823519,665.73,664.81,0.27619771]
[1737933777772,0.88823519,665.73,664.82,0.27619771]
[1737933777978,0.88823519,665.72,664.8,0.27619771]
[1737933778172,0.88823519,665.72,664.79,0.68]
[1737933778372,0.88823519,665.71,664.8,0.27628476]
[1737933778768,0.88823519,665.71,664.8,1.29328476]
[1737933778971,0.88823519,665.7,664.81,0.27628476]
[1737933779175,0.88823519,665.69,664.81,0.27628476]
[1737933779471,0.88823519,665.69,664.8,1.017]
[1737933779676,0.88823519,665.68,664.8,1.017]
[1737933780376,0.88823519,665.67,664.8,1.017]
[1737933780881,0.88823519,665.67,664.8,1.831]
[1737933781080,0.88823519,665.66,664.8,1.831]
[1737933781875,0.88823519,665.65,664.8,1.831]
[1737933782382,0.88823519,665.64,664.8,1.831]
[1737933782675,0.88823519,665.63,664.8,1.831]
[1737933783283,0.88823519,665.62,664.8,1.831]
[1737933783681,0.88823519,665.61,664.8,1.831]
[1737933784079,0.88823519,665.61,664.81,0.27628746]
[1737933784279,0.88823519,665.6,664.81,0.27628746]
[1737933784684,0.88823519,665.6,664.82,0.27625101]
[1737933784884,0.88823519,665.6,664.8,1.831]
[1737933785185,0.88823519,665.59,664.81,0.27624288]
[1737933785382,0.88823519,665.59,664.8,1.831]
[1737933785789,0.88823519,665.58,664.8,1.831]
[1737933786082,0.88823519,665.58,664.81,0.27628081]
[1737933786284,0.88823519,665.57,664.81,0.27628081]
[1737933786684,0.88823519,665.57,664.8,1.831]
[1737933786685,0.88823519,665.56,664.82,0.27627727]
[1737933787085,0.88823519,665.56,664.8,1.831]
[1737933787285,0.88823519,665.56,664.81,0.27628148]
[1737933787484,0.88823519,665.55,664.8,1.831]
[1737933788085,0.88823519,665.54,664.8,1.831]
[1737933788688,0.88823519,665.53,664.8,1.831]
[1737933788889,0.88823519,665.53,664.8,2.902]
[1737933789184,0.88823519,665.52,664.8,2.902]
[1737933789587,0.88823519,665.52,664.81,0.27623101]
[1737933789888,0.88823519,665.51,664.81,0.27623101]
[1737933790288,0.88823519,665.5,664.82,0.27623101]
[1737933790589,0.88823519,665.73,664.83,0.27623101]
[1737933790783,0.88823519,665.73,664.84,0.27623101]
[1737933791094,0.88823519,665.72,664.85,0.27623101]
[1737933791390,0.88823519,665.72,664.86,0.27623101]
[1737933791583,0.88823519,665.72,664.87,0.27623101]
[1737933791786,0.88823519,665.72,664.88,0.27623101]
[1737933791990,0.88823519,665.71,664.81,0.27623101]
[1737933792290,0.88823519,665.71,664.82,0.27623101]
[1737933792589,0.88823519,665.71,664.83,0.27623101]
[1737933792789,0.88823519,665.7,664.81,0.27623101]
[1737933793284,0.88823519,665.69,664.81,0.27623101]
[1737933793888,0.88823519,665.69,664.82,0.27623101]
[1737933794184,0.30041758,665.74,664.82,0.27623101]
[1737933794185,0.88823519,665.73,664.83,0.27623101]
[1737933794491,0.88823519,665.72,664.83,0.27623101]
[1737933794789,0.88823519,665.72,664.84,0.27623101]
[1737933794990,0.88823519,665.71,664.85,0.27623101]
[1737933795288,0.88823519,665.71,664.86,0.27623101]
[1737933795482,0.30043563,665.7,664.83,0.27623101]
[1737933795686,1.18867082,665.7,664.82,0.976]
[1737933795883,1.18867082,665.7,664.83,0.27620298]
[1737933796088,0.88823519,665.69,664.83,0.27620298]
[1737933796690,0.88823519,665.68,664.83,0.27620298]
[1737933797286,0.88823519,665.67,664.83,0.27620298]
[1737933797692,0.88823519,665.66,664.83,0.27620298]
[1737933798295,0.88823519,665.65,664.83,0.27620298]
[1737933798893,0.88823519,665.64,664.83,0.27620298]
[1737933799490,0.88823519,665.63,664.82,0.976]
[1737933799694,0.88823519,665.63,664.83,0.27623666]
[1737933799896,0.88823519,665.62,664.83,0.27623666]
[1737933800796,0.88823519,665.61,664.83,0.27623666]
[1737933801194,0.30043563,665.7,664.82,0.976]
[1737933801195,0.88823519,665.6,664.82,0.976]
[1737933801390,0.88823519,665.6,664.83,0.27616555]
[1737933801592,0.88823519,665.59,664.84,0.27616555]
[1737933801796,0.88823519,665.59,664.85,0.27616555]
[1737933801994,0.88823519,665.59,664.82,0.976]
[1737933801995,0.88823519,665.58,664.86,0.27616555]
[1737933802195,0.30043563,665.7,664.87,0.27616555]
[1737933802398,0.30043563,665.7,664.88,0.27616555]
[1737933802594,0.30043563,665.7,664.89,0.27616555]
[1737933802794,0.30043563,665.7,664.9,0.27616555]
[1737933802992,0.30043563,665.7,664.82,0.976]
[1737933803199,0.30043563,665.7,664.83,0.27608488]
[1737933803391,0.8955985,665.69,664.84,0.27608488]
[1737933803598,0.8955985,665.69,664.85,0.27608488]
[1737933803899,0.30043563,665.7,664.86,0.27608488]
[1737933804093,0.30043563,665.7,664.87,0.27608488]
[1737933804298,0.30043563,665.7,664.88,0.27608488]
[1737933804599,0.30043563,665.7,664.89,0.27608488]
[1737933804799,0.30043563,665.7,664.9,0.27608488]
[1737933805099,0.30043563,665.7,664.91,0.27608488]
[1737933805298,0.89636567,665.69,664.83,0.27608488]
[1737933805500,0.89636567,665.69,664.84,0.27608488]
[1737933805699,0.89636567,665.69,664.83,0.27608488]
[1737933805900,0.89636567,665.68,664.84,0.27608488]
[1737933806400,0.89636567,665.67,664.84,0.27608488]
[1737933806599,0.89636567,665.66,664.84,0.27608488]
[1737933806801,0.89636567,665.66,664.85,0.27608488]
[1737933806996,0.89636567,665.66,664.86,0.27608488]
[1737933807301,0.89636567,665.65,664.87,0.27608488]
[1737933807494,0.89636567,665.64,664.88,0.27608488]
[1737933807697,0.89636567,665.64,664.84,0.27608488]
[1737933807901,0.89636567,665.63,664.85,0.27608488]
[1737933808101,0.89636567,665.63,664.84,0.94208488]
[1737933808303,0.89636567,665.62,664.85,0.27608488]
[1737933808703,0.89636567,665.61,664.85,0.27608488]
[1737933809401,0.89636567,665.69,664.85,0.27608488]
[1737933810000,0.89636567,665.68,664.85,0.27608488]
[1737933810302,0.89636567,665.67,664.85,0.27608488]
[1737933810899,0.89636567,665.66,664.85,0.27608488]
[1737933811702,0.30043563,665.7,664.85,0.27608488]
[1737933812002,0.89848075,665.69,664.85,0.27608488]
[1737933812400,0.30043563,665.7,664.85,0.27608488]
[1737933813000,0.30043563,665.7,664.86,0.27608488]
[1737933813201,0.30043563,665.7,664.85,0.27608488]
[1737933813403,0.30043563,665.7,664.86,0.27608488]
[1737933813603,0.89854944,665.69,664.87,0.27608488]
[1737933813803,0.89854944,665.69,664.88,0.27608488]
[1737933813999,0.30043563,665.7,664.89,0.27608488]
[1737933814200,0.30043563,665.7,664.9,0.27608488]
[1737933814408,0.30043563,665.7,664.91,0.27608488]
[1737933814704,0.30043563,665.7,664.92,0.27608488]
[1737933814899,0.30043563,665.7,664.93,0.27608488]
[1737933815096,0.30043563,665.7,664.94,0.27601803]
[1737933815301,1.07570839,666.79,664.85,0.27601803]
[1737933815499,0.2999535,666.77,664.86,0.27601803]
[1737933815703,0.2999535,666.77,664.87,0.27601803]
[1737933815902,0.2999535,666.77,664.88,0.27601803]
[1737933816104,0.2999535,666.77,664.89,0.27596051]
[1737933816298,0.89850686,666.76,664.9,0.27596051]
[1737933816504,0.89850686,666.76,664.91,0.27596051]
[1737933816704,0.89850686,666.76,664.93,0.30078354]
[1737933816904,0.2999535,666.77,664.94,0.27596051]
[1737933816905,0.89850686,666.75,664.94,0.27596051]
[1737933817104,0.89850686,666.75,664.95,0.27596051]
[1737933817303,0.89850686,666.75,664.96,0.27596051]
[1737933817503,0.89850686,666.74,664.97,0.27596051]
[1737933817703,0.89850686,666.74,664.98,0.27596051]
[1737933817903,0.89850686,666.74,664.99,0.27576964]
[1737933818207,0.89850686,666.73,665.0,0.27576964]
[1737933818500,0.89850686,666.73,665.01,0.27576964]
[1737933818707,0.89850686,666.72,665.02,0.27576964]
[1737933818897,0.89850686,666.72,665.03,0.27576964]
[1737933819101,0.89850686,666.72,665.04,0.27576964]
[1737933819298,0.89850686,666.72,665.05,0.27576964]
[1737933819502,0.89850686,666.71,664.93,0.30078354]
[1737933819703,0.89850686,666.71,665.06,0.2757583]
[1737933819899,0.89850686,666.7,665.07,0.57647852]
[1737933820103,0.89850686,666.7,665.08,0.2757583]
[1737933820299,0.89850686,666.7,665.07,0.30072022]
[1737933820300,0.89850686,666.69,665.09,0.2757583]
[1737933820607,0.89850686,666.69,665.1,0.27573321]
[1737933820808,0.89850686,666.68,665.11,0.27573321]
[1737933821005,0.89850686,666.68,665.12,0.27573321]
[1737933821207,0.89850686,666.68,665.13,0.27573321]
[1737933821403,0.89850686,666.67,665.14,0.27573321]
[1737933821606,0.89850686,666.67,665.15,0.27575233]
[1737933821801,0.89850686,666.67,665.16,0.27575233]
[1737933822006,0.89850686,666.67,665.07,0.30072022]
[1737933822007,0.89850686,666.66,665.17,0.27575233]
[1737933822207,0.89850686,666.66,665.18,0.27575233]
[1737933822405,0.89850686,666.65,665.19,0.27575233]
[1737933822606,0.89850686,666.65,665.2,0.27575233]
[1737933822901,0.2999535,666.77,665.21,0.27575233]
[1737933822902,0.89850686,666.64,665.21,0.27575233]
[1737933823106,0.89850686,666.63,665.22,0.27575233]
[1737933823407,0.89850686,666.63,665.23,0.27576278]
[1737933823607,0.89850686,666.63,665.24,0.27576278]
[1737933823808,0.89850686,666.62,665.25,0.27576278]
[1737933824002,0.89850686,666.62,665.26,0.27576278]
[1737933824307,0.89850686,666.62,665.27,0.27576278]
[1737933824509,0.89850686,666.62,665.28,0.27576278]
[1737933824707,0.89850686,666.62,665.29,0.27576278]
[1737933825010,1.19853236,666.61,665.22,0.994]
[1737933825303,0.89850686,666.6,665.23,0.27578735]
[1737933825511,0.89850686,666.6,665.24,0.27578735]
[1737933825702,0.89850686,666.6,665.25,0.27578735]
[1737933826011,0.89850686,666.59,665.26,0.27578735]
[1737933826204,0.89850686,666.59,665.27,0.27578735]
[1737933826404,0.89850686,666.58,665.27,0.27578735]
[1737933826609,0.89850686,666.58,665.28,0.27578735]
[1737933826810,0.89850686,666.57,665.29,0.27578735]
[1737933827203,0.89850686,666.57,665.22,0.994]
[1737933827204,0.89850686,666.56,665.3,0.27578735]
[1737933827409,0.89850686,666.56,665.31,0.27578735]
[1737933827608,0.89850686,666.56,665.32,0.27578735]
[1737933827803,0.89850686,666.56,665.33,0.27578735]
[1737933828003,0.89850686,666.56,665.22,0.994]
[1737933828004,0.89850686,666.55,665.34,0.27578735]
[1737933828202,0.89850686,666.55,665.35,0.27578735]
[1737933828407,0.89850686,666.55,665.36,0.27578735]
[1737933828604,0.89850686,666.54,665.37,0.27578735]
[1737933828809,0.89850686,666.53,665.38,0.27578735]
[1737933829010,0.89850686,666.53,665.39,0.27578735]
[1737933829207,0.89850686,666.53,665.4,0.27578735]